Cogmind - Beta 12 @@@ ROGUE MODE // 2023.10.29 @ 16:28:54 Player: Figgis Result: Self-destructed Performance ------------- Evolutions (0) 0 Regions Visited (4) 800 Robots Destroyed (18) 90 Value Destroyed (431) 431 Prototype IDs (25) 500 Alien Tech Used (0) 0 Bonus (-250) -250 TOTAL SCORE: 1571 Bonus ------- Aligned with FarCom 300 Friendly Fire -550 Cogmind --------- Core Integrity 69/250 Matter 166/300 Energy 61/250 System Corruption 4% Temperature Warm (161) Movement Walking (170) Ox1 Location -9/Mines Parts ------- > --- POWER (1) -------- Ion Engine > --- PROPULSION (2) --- Potential Leg Potential Leg > --- UTILITY (2) ------ Huge Storage Unit Shield Generator > --- WEAPON (2) ------- Particle Gun Grenade Launcher > --- INVENTORY (25) --- Ion Engine Improved Aluminum Leg Improved Aluminum Leg Improved Aluminum Leg High-capacity Matter Pod (200) High-capacity Matter Pod (200) Medium Armor Plating Shield Generator Shield Generator Shield Generator Medium Laser Medium Laser Beam Cannon Field Lobotomy Kit (5) Shock Trap Shock Trap Shock Trap Peak State ------------ > --- POWER ------------ Ion Engine > --- PROPULSION ------- Potential Leg Potential Leg > --- UTILITY ---------- Huge Storage Unit Shield Generator > --- WEAPON ----------- Medium Laser Particle Gun > --- INVENTORY -------- Ion Engine Improved Aluminum Leg Improved Aluminum Leg Improved Aluminum Leg High-capacity Matter Pod High-capacity Matter Pod Medium Armor Plating Shield Generator Shield Generator Shield Generator Medium Laser Beam Cannon Grenade Launcher Field Lobotomy Kit Shock Trap Shock Trap Shock Trap [Rating: 30] Favorites ----------- Power Ion Engine Engine Ion Engine Propulsion Improved Aluminum Leg Treads Light Treads Leg Improved Aluminum Leg Utility Medium Armor Plating Device Shield Generator Storage Huge Storage Unit Protection Medium Armor Plating Weapon Medium Laser Energy Gun Medium Laser Ballistic Gun Light Assault Rifle Launcher Grenade Launcher Build | -11 -10 -10 -10 -9 ------- Run | Jun Mat Min Exi Min Slots Evolved . | . . . . . Power . | . . . . . Propulsion . | . . . . . Utility . | . . . . . Weapon . | . . . . . Parts Attached 26 | 3 11 1 11 . Power 4 | 1 1 . 2 . Engine 4 | 1 1 . 2 . Core . | . . . . . Reactor . | . . . . . Propulsion 9 | 2 3 . 4 . Treads 3 | 2 1 . . . Leg 6 | . 2 . 4 . Wheel . | . . . . . Hover . | . . . . . Flight . | . . . . . Utility 7 | . 5 1 1 . Device 1 | . . . 1 . Storage 3 | . 3 . . . Processor . | . . . . . Hackware . | . . . . . Protection 3 | . 2 1 . . Artifact . | . . . . . Weapon 6 | . 2 . 4 . Energy Gun 3 | . 1 . 2 . Energy Cannon . | . . . . . Ballistic Gun 1 | . 1 . . . Ballistic Cannon . | . . . . . Launcher 2 | . . . 2 . Special Weapon . | . . . . . Impact Weapon . | . . . . . Slashing Weapon . | . . . . . Piercing Weapon . | . . . . . Special Melee Weapon . | . . . . . Unidentified Prototypes . | . . . . . Parts Lost 6 | . . 1 5 . Power 1 | . . . 1 . Propulsion 1 | . . . 1 . Utility 2 | . . 1 1 . Weapon 2 | . . . 2 . Highest Loss Streak 5 | . . 1 5 . To Critical Strikes 2 | . . . 2 . Average Slot Usage (%) 98 | . 97 99 95 100 Engine 13 | . 14 14 12 14 Treads 3 | . 17 . . . Leg 24 | . 10 28 26 28 Storage 13 | . 13 14 14 14 Protection 12 | . 13 13 9 . Energy Gun 14 | . 13 14 15 14 Ballistic Gun 12 | . 13 14 10 . Naked Turns . | . . . . . Heaviest Build 95 | 3 95 95 95 93 Greatest Support 60 | 3 40 26 60 60 Greatest Overweight (x) 8 | . 8 3 6 1 Average Overweight (x) 2 | . . 3 2 1 Largest Inventory Capacity 25 | 5 25 25 25 25 Average Capacity 22 | 5 13 25 25 25 Most Carried 25 | 5 11 19 25 17 Average Carried 15 | 3 9 15 21 17 Final Capacity 25 | 5 25 25 25 25 Final Carried 19 | 5 11 19 17 17 Class Distribution -------------------- 100% | Mutant Dominant Class ---------------- Mutant | -10/Materials Mutant | -10/Mines Mutant | -10/Exiles Mutant | -9/Mines Resources | -11 -10 -10 -10 -9 ----------- Run | Jun Mat Min Exi Min Matter Collected 605 | 200 152 67 114 72 Remotely . | . . . . . Salvage Created 590 | . 285 145 22 138 Parts 41 | . 34 5 . 2 Haulers Intercepted 2 | . 2 . . . Recyclers Shooed . | . . . . . Parts Field Recycled . | . . . . . Retrieved Matter . | . . . . . Parts Self-Destructed . | . . . . . Prevented . | . . . . . Kills | -11 -10 -10 -10 -9 ------- Run | Jun Mat Min Exi Min Combat Hostiles Destroyed 24 | . 7 4 4 9 Guns 15 | . 7 3 1 4 AOE 8 | . . . 3 5 Classes Destroyed 5 | . 4 . 1 . Hauler 2 | . 2 . . . Watcher 2 | . 2 . . . Swarmer 5 | . 5 . . . Grunt 9 | . 2 4 . 3 Assembled 13 | . . . 7 6 Best Kill Streak 6 | . 4 1 4 6 Combat Bots Only 6 | . 3 1 4 6 Max Kills in Single Turn 3 | . 2 1 3 3 Gunslinging 1 | . 1 . . . Exploded 2 | . . . 2 2 Melee . | . . . . . Uniques/NPCs Destroyed 1 | . . . 1 . 8R-AWN (-10/Exiles) Combat | -11 -10 -10 -10 -9 -------- Run | Jun Mat Min Exi Min Damage Taken 1351 | . 113 612 407 219 Core 181 | . 7 74 72 28 Absorbed by Shields 88 | . . . 2 86 Core Remaining (%) 100 | 100 . . . . Volleys Fired 77 | . 23 29 17 8 Largest 2 | . 2 2 2 2 Hottest 95 | . 70 70 95 95 Shots Fired 146 | . 46 54 32 14 Gun 125 | . 46 54 17 8 Cannon . | . . . . . Launcher 21 | . . . 15 6 Special . | . . . . . Kinetic 52 | . 23 25 4 . Thermal 73 | . 23 29 13 8 Explosive 21 | . . . 15 6 Electromagnetic . | . . . . . Robot Hit Streak 11 | . 10 10 11 4 Robot Miss Streak 3 | . 2 3 2 1 Penetration Max . | . . . . . Secondary Targets 3 | . 2 1 . . Max Gunslinging Chain 1 | . 1 1 . . Shots Hit Robots 87 | . 31 44 5 7 Core Hits 61 | . 16 9 16 20 Critical Kills . | . . . . . Critical Parts Destroyed . | . . . . . Critical Strikes 3 | . 1 2 . . Burn 3 | . 1 2 . . Melee Attacks . | . . . . . Impact . | . . . . . Slashing . | . . . . . Piercing . | . . . . . Sneak Attacks . | . . . . . Combat Hostiles . | . . . . . Follow-up Attacks . | . . . . . Damage Inflicted 1721 | . 333 488 492 408 Guns 928 | . 333 488 21 86 Cannons . | . . . . . Explosions 793 | . . . 471 322 Melee . | . . . . . Ramming . | . . . . . Kinetic 286 | . 114 163 9 . Thermal 642 | . 219 325 12 86 Explosive 793 | . . . 471 322 Electromagnetic . | . . . . . Impact . | . . . . . Slashing . | . . . . . Piercing . | . . . . . Highest Corruption 4 | . . . 4 4 Average Corruption 3 | . . . 3 4 Corruption Purged . | . . . . . Corruption Blocked . | . . . . . Effects 9 | . . . 8 1 Message Errors 1 | . . . . 1 Matter Fused 2 | . . . 2 . Energy Discharges 1 | . . . 1 . Data Loss (minor) 5 | . . . 5 . Overload Shots . | . . . . . Overflow Damage 3 | . . . 3 . Projectiles . | . . . . . Explosions 3 | . . . 3 . Melee . | . . . . . Knockbacks . | . . . . . Impact . | . . . . . Kinetic . | . . . . . Secondary . | . . . . . Self-Inflicted Damage 151 | . . . 82 69 Shots 5 | . . . 3 2 Rammed . | . . . . . Targets Rammed . | . . . . . Kicked . | . . . . . Crushed . | . . . . . Highest Temperature 338 | . 147 338 321 161 Average Temperature 121 | . 44 183 120 80 Received Heat Transfer 491 | . 24 393 . 74 Effects 3 | . . 2 1 . Energy Bleed 1 | . . . 1 . Interference 2 | . . 2 . . Siege Activations . | . . . . . Robots Corrupted . | . . . . . Combat Hostiles . | . . . . . Parts Fried . | . . . . . Impact Corruptions . | . . . . . Robots Melted 1 | . . 1 . . Combat Hostiles 1 | . . 1 . . Parts Melted 1 | . . 1 . . Heat Transferred 1998 | . 703 1073 37 185 Parts Sabotaged . | . . . . . Parts Stolen . | . . . . . Parts Stripped . | . . . . . Power Chain Reactions . | . . . . . Missiles Intercepted . | . . . . . Alert | -11 -10 -10 -10 -9 ------- Run | Jun Mat Min Exi Min Peak Influence 213 | . 213 50 . 117 Initial 13 | . . 13 . . Average 25 | . 72 8 . 97 Maximum Alert Level 1 | . 1 . . . Low Security (%) 98 | 100 93 100 . 100 Level 1 1 | . 6 . . . Level 2 . | . . . . . Level 3 . | . . . . . Level 4 . | . . . . . Level 5 . | . . . . . High Security . | . . . . . Max Security . | . . . . . Squads Dispatched 2 | . 2 . . . Investigation . | . . . . . Extermination . | . . . . . Reinforcement 2 | . 2 . . . Assault . | . . . . . Garrison . | . . . . . Intercept . | . . . . . Searches Triggered . | . . . . . Construction Impeded . | . . . . . Haulers Reinforced . | . . . . . Active Scanning Responses . | . . . . . Cargo Convoy Interrupts . | . . . . . Stealth | -11 -10 -10 -10 -9 --------- Run | Jun Mat Min Exi Min Distress Signals . | . . . . . Communications Jammed . | . . . . . Distress Signals . | . . . . . Times Spotted 38 | . 14 4 5 15 Peak Tracking Total 13 | . 3 2 6 13 Tactical Retreats . | . . . . . Traps | -11 -10 -10 -10 -9 ------- Run | Jun Mat Min Exi Min Traps Triggered . | . . . . . Indirectly . | . . . . . Trap Hack Attempts . | . . . . . Triggered . | . . . . . Disarmed . | . . . . . Reprogrammed . | . . . . . Reused . | . . . . . Traps Extracted . | . . . . . Installed . | . . . . . Triggered . | . . . . . Most Traps Carried 3 | . . 3 3 3 Machines | -11 -10 -10 -10 -9 ---------- Run | Jun Mat Min Exi Min Machines Disabled 4 | . . . 4 . Max in Single Turn 2 | . . . 2 . Machines Repaired . | . . . . . Machines Sabotaged . | . . . . . Overloaded Fab Kills . | . . . . . Hacking | -11 -10 -10 -10 -9 --------- Run | Jun Mat Min Exi Min Machines Accessed 5 | . 3 . 2 . Terminals 3 | . 3 . . . Fabricators . | . . . . . Repair Stations . | . . . . . Recycling Units . | . . . . . Scanalyzers . | . . . . . Garrison Access . | . . . . . Total Hacks 11 | . 9 . 2 . Successful 6 | . 4 . 2 . Failed 5 | . 5 . . . Catastrophic 1 | . 1 . . . Database Lockouts . | . . . . . Manual 9 | . 8 . 1 . Terminals 9 | . 9 . . . Fabricators . | . . . . . Repair Stations . | . . . . . Recycling Units . | . . . . . Scanalyzers . | . . . . . Garrison Access . | . . . . . Terminal Hacks 6 | . 4 . 2 . Record 1 | . . . 1 . Robot Analysis 2 | . 2 . . . Prototype ID Bank 1 | . 1 . . . Locate Traps 1 | . 1 . . . EX-Prototype ID Bank 1 | . . . 1 . Fabricator Hacks . | . . . . . Repair Station Hacks . | . . . . . Recycling Unit Hacks . | . . . . . Scanalyzer . | . . . . . Garrison Access Hacks . | . . . . . Unauthorized Hacks . | . . . . . Terminals . | . . . . . Fabricators . | . . . . . Repair Stations . | . . . . . Recycling Units . | . . . . . Scanalyzers . | . . . . . Garrison Access . | . . . . . Data Cores Recovered . | . . . . . Used . | . . . . . Hacking Detections 3 | . 3 . . . Full Trace Events . | . . . . . Feedback Events . | . . . . . Feedback Blocked . | . . . . . Robot Schematics Acquired . | . . . . . Robots Built . | . . . . . Authchips . | . . . . . Time . | . . . . . Total Robot Build Rating . | . . . . . Part Schematics Acquired . | . . . . . Parts Built . | . . . . . Authchips . | . . . . . Time . | . . . . . Total Part Build Rating . | . . . . . Parts Repaired . | . . . . . Time . | . . . . . Parts Recycled . | . . . . . Recycled Matter . | . . . . . Retrieved Matter . | . . . . . Retrieved Components . | . . . . . Parts Scanalyzed . | . . . . . Part Schematics Acquired . | . . . . . Parts Damaged . | . . . . . Bothacking | -11 -10 -10 -10 -9 ------------ Run | Jun Mat Min Exi Min Used RIF Installer . | . . . . . Robots Hacked . | . . . . . Non-combat . | . . . . . Combat . | . . . . . Robot Hacks Applied . | . . . . . Relay Couplers Released . | . . . . . Fabnet Peak Effective % . | . . . . . Robots Rewired . | . . . . . Allies Hacked . | . . . . . Hacks Repelled . | . . . . . Allies | -11 -10 -10 -10 -9 -------- Run | Jun Mat Min Exi Min Total Allies . | . . . . . Largest Group . | . . . . . Highest-Rated Group . | . . . . . Highest-Rated Ally . | . . . . . Total Orders . | . . . . . Ally Attacks 11 | . . . 11 . Total Damage 529 | . . . 529 . Kills 1 | . . . 1 . Allies Corrupted . | . . . . . Allies Melted . | . . . . . Turrets Deployed 3 | . . . 3 . Intel | -11 -10 -10 -10 -9 ------- Run | Jun Mat Min Exi Min Robot Analysis Total 2 | . 2 . . . Derelict Logs Recovered 1 | . . 1 . . Drone Launches . | . . . . . Drone Recoveries . | . . . . . Exploration | -11 -10 -10 -10 -9 ------------- Run | Jun Mat Min Exi Min Turns Passed 3964 | 28 697 2088 1112 39 Spaces Moved 1322 | 36 335 592 349 10 Core 45 | 36 9 . . . Treads 208 | . 208 . . . Legs 1069 | . 118 592 349 10 Wheels . | . . . . . Hover . | . . . . . Flight . | . . . . . Fastest Speed 50 | 50 50 330 170 170 Average Speed 273 | 50 179 330 294 170 Slowest Speed 540 | 50 450 330 540 170 Overloaded Moves . | . . . . . Propulsion Burnouts . | . . . . . Robots Hopped . | . . . . . Cave-ins Triggered . | . . . . . Exploration Rate (%) 46 | 3 60 98 61 12 Regions Visited 4 Branch Regions 3 Pre-discovered Areas 2 | . . 1 1 . Known Exits Taken . | . . . . . Unknown Exits Taken 4 | 1 1 1 1 . Scrap Searched 2 | . . 2 . . Spaces Dug . | . . . . . Terrain Destroyed 96 | . . . 62 34 Melee . | . . . . . Projectile . | . . . . . AOE 96 | . . . 62 34 Terrain Rammed . | . . . . . Walls Destroyed . | . . . . . Machines Disabled . | . . . . . Actions | -11 -10 -10 -10 -9 --------- Run | Jun Mat Min Exi Min Total 1540 | 45 396 679 402 18 Wait 67 | . 1 49 17 . Move 1318 | 35 334 591 348 10 Hop . | . . . . . Pick Up 38 | 7 16 9 6 . Fast Attach 3 | 1 2 . . . Attach 12 | 2 4 1 5 . Detach . | . . . . . Swap 11 | . 5 . 6 . Drop 14 | . 11 . 3 . Fire 77 | . 23 29 17 8 Melee . | . . . . . Ram . | . . . . . Kick . | . . . . . Crush . | . . . . . Escape Stasis . | . . . . . Rewire . | . . . . . Trap . | . . . . . Miscellaneous . | . . . . . Route ------- -11/Junkyard -10/Materials (discovered 4 exits: [*Mat x2] / [*Min x2]) -10/Mines (discovered 3 exits: [*Mat x2] / *Exi) -10/Exiles -9/Mines History --------- Turn | Location | Event 17 | -11/Junkyard | Discovered new exit (range 16) 29 | -11/Junkyard | Entered Materials 192 | -10/Materials | Discovered new exit (range 6) 314 | -10/Materials | Build established: Mutant 405 | -10/Materials | Discovered new exit (range 8) 424 | -10/Materials | Discovered new exit (range 13) 541 | -10/Materials | Discovered new exit (range 12) 726 | -10/Materials | Entered Mines 1040 | -10/Mines | Deemed a non-threat by the Exiles lab entrance 1251 | -10/Mines | Learned location of Zion (-7) 1307 | -10/Mines | Found a hidden stash of uninstalled traps 1938 | -10/Mines | Received a Rocket Launcher from a helpful Derelict 2235 | -10/Mines | Discovered new exit (range 6) 2350 | -10/Mines | Discovered new exit (range 5) 2801 | -10/Mines | Discovered new exit (range 5) 2814 | -10/Mines | Entered Exiles 2894 | -10/Exiles | Met 8R-AWN 2953 | -10/Exiles | Met EX-HEX 3042 | -10/Exiles | Met EX-BIN 3082 | -10/Exiles | Aligned with FarCom system 3085 | -10/Exiles | Given EX-Vault access code 3161 | -10/Exiles | Opened EX-Vault 3181 | -10/Exiles | Found Deploy-a-Sentry 3185 | -10/Exiles | Found Deploy-a-Sentry 3189 | -10/Exiles | Found Deploy-a-Sentry 3194 | -10/Exiles | Found Potential Leg 3198 | -10/Exiles | Found Potential Leg 3209 | -10/Exiles | Found Field Lobotomy Kit 3282 | -10/Exiles | Warned to stay clear of 0b10 Research branches 3372 | -10/Exiles | Met EX-DEC 3600 | -10/Exiles | Attacked by the Exiles 3611 | -10/Exiles | DAS Turret deployed 3623 | -10/Exiles | DAS Turret deployed 3633 | -10/Exiles | DAS Turret deployed 3643 | -10/Exiles | Core integrity fell below 50% 3644 | -10/Exiles | Allies destroyed 8R-AWN 3665 | -10/Exiles | Lost 5 parts (1p1n1u2w) 3905 | -10/Exiles | Discovered new exit (range 14) 3926 | -10/Exiles | Stole two prototypes: Potential Leg, Field Lobotomy Kit 3926 | -10/Exiles | Entered Mines 3949 | -9/Mines | Assembled infested the area 3965 | -9/Mines | Self-destructed Last Messages --------------- 03887_ The unstable cave ceiling collapses. 03896_ System corrupted: Component data lost. 03905_ EXIT=FOUND 03912_ System corrupted: Energy discharge (-85). LOCATION=UNKNOWN GOAL=ESCAPE 03926_ G-34 Mercenary destroyed. 03932_ Critical hit (Burn: +26). 03934_ G-47 Trooper destroyed. 03936_ Acquired 40 matter. 03938_ Acquired 32 matter. 03939_ W%##HFSRAN8&L:/0AQQ9N 03949_ ALERT: Infestation in the mines, dispatching Demolisher response squad. 03956_ as-35475 destroyed. 03959_ as-01267 destroyed. 03959_ as-50083 destroyed. 03962_ as-13209 destroyed. 03962_ as-45964 destroyed. 03962_ as-31477 destroyed. Map ----- +----------------------------------------------------+ | ?????????????????????????????????????????????????? | | ?????????????????????????????????????????????????? | | ?????????????????????????????????????????????????? | | ?????????????????????????????????????????????????? | | ?????????????????????????????????????????????????? | | ?????????????????????????????????????????????????? | | ?????????????????????????????????????????????????? | | ?????????????????????????????????????????????????? | | ?????????????????????????????????????????????????? | | ?????????????????????????????????????????????????? | | ?????????????????????????????????????????????????? | | ?????????????????????????????????????????????????? | | ?????????????????????????????????????????????????? | | ?????????????????????????????????????????????????? | | ?????????????? ######????????????????????????????? | | ?????????????? #????????######?????????????? | | ????????????? #??????## #?????????????? | | ????????????? ??????# ##????????????? | | ????????????aa ?????## #????????????? | | ????????????#a ??### = ## ## #????? | | ?????????????# ??# #???? | | ??????????????# % #?# = #???? | | ????????????????# %a ?# ### ##???? | | ?????????????????# a ## #####??? #????? | | ?????????????????# a #???????? #????? | | ????????????????????# a@ #?????????? ##????? | | ????????????????????### ##???????????#?????? | | ?????????????????????# ###??????????????????? | | ?????????????????????# #????????????????????? | | ?????????????????????# ????????????????????? | | ?????????????????????# #???????????????????? | | ?????????????????????# ##???????????????????? | | ?????????????????????# ##????????????????????? | | ?????????????????????## #?????????????????????? | | ??????????????????????## ?????????????????????? | | ???????????????????????# ?????????????????????? | | ???????????????????????## #?????????????????????? | | ????????????????????????####?????????????????????? | | ?????????????????????????????????????????????????? | | ?????????????????????????????????????????????????? | | ?????????????????????????????????????????????????? | | ?????????????????????????????????????????????????? | | ?????????????????????????????????????????????????? | | ?????????????????????????????????????????????????? | | ?????????????????????????????????????????????????? | | | | | | | | | | | +----------------------------------------------------+ Best States ------------- Heat Dissipation 25 Energy Generation 10 Energy Capacity 250 Matter Stores 300 Matter Capacity 300 Sight Range 16 Terrain Scan Density 10 Armor Coverage 225 Evasion (%) 55 Recoil Reduction 2 Item Schematics ----------------- None Robot Schematics ------------------ None Fabricated ------------ Nothing Alien Tech Used ----------------- None Achievements -------------- None Challenges ------------ None Game ------ Seed GlidesysArmorTearclaws Manual? 0 Play Time 00:13:30 Cumulative 87.1 hours Start 2023.10.26 @ 20:07:28 End 2023.10.29 @ 16:28:54 Sessions 3 Manual Loads 0 Difficulty Rogue Special Mode None Game No. 148 Rogue 145 Adventurer 3 Explorer 0 Win Type - Total 0 Types 0/0/0/0/0/0/0/0/0 Lore% 35 Gallery% 53 Achievement% 38 Wizard Run 0 Options --------- ASCII 0 Keyboard 0 Movement Mouse Keybinds 0 Fullscreen 2 Font 18/SmallcapsGlow Map View 76x50 Tactical HUD 1 Map Filters NONE Filters NONE Steam 1 RUN: 5ece1bfb-cc87-4d8f-9614-538aa19972e1